bitfinex-derivatives/quotes_ETHF0:USTF0_20250107
["timestamp","ask_amount","ask_price","bid_price","bid_amount"]
[1736282459641,3.50271,3392.7,3392.6,0.29492]
[1736282459642,3.2078,3392.7,3392.6,0.29492]
[1736282459848,3.2078,3393.2,3392.5,3.2078]
[1736282460144,5.51194599,3393.2,3393.1,0.29487]
[1736282461347,3.2078,3393.2,3393.1,0.29487]
[1736282461544,3.2078,3393.2,3392.9,3.22692108]
[1736282461545,5.51194599,3393.9,3393.2,0.73715]
[1736282461853,0.29482,3393.8,3393.3,1.328]
[1736282462146,0.29482,3393.8,3393.6,0.29483]
[1736282462548,3.2078,3393.9,3393.3,1.328]
[1736282462849,2.30414599,3394.2,3393.4,3.22692108]
[1736282463052,2.30414599,3394.2,3394.1,0.29479]
[1736282463251,2.30414599,3394.2,3394.1,4.83059]
[1736282464251,3.2078,3394.8,3394.7,0.29473]
[1736282464644,3.50253,3394.8,3394.7,0.29473]
[1736282464947,3.2078,3394.8,3394.7,0.29473]
[1736282466552,3.2078,3394.8,3394.1,6.43472108]
[1736282466752,3.2078,3394.8,3394.2,1.328]
[1736282467056,0.29478,3394.3,3394.2,1.328]
[1736282467258,3.2078,3394.4,3394.2,1.328]
[1736282467757,0.29477,3394.3,3394.2,1.328]
[1736282468655,3.2078,3394.4,3394.2,1.328]
[1736282468952,3.2078,3394.4,3393.3,3.2078]
[1736282469148,3.2078,3393.9,3393.1,1.328]
[1736282469351,0.29486,3393.3,3393.1,1.62287]
[1736282469554,0.29486,3393.2,3393.1,1.328]
[1736282469859,3.2078,3393.5,3392.5,1.328]
[1736282470158,0.29492,3392.6,3392.5,1.328]
[1736282470355,0.29492,3392.6,3392.2,0.29495]
[1736282470356,3.2078,3392.7,3392.1,1.328]
[1736282470656,0.29492,3392.6,3392.4,0.29493]
[1736282470861,3.2078,3392.7,3392.1,1.328]
[1736282471357,0.29495,3392.2,3392.1,1.328]
[1736282471660,0.29499,3391.7,3391.6,3.2078]
[1736282471961,0.29499,3391.7,3391.3,1.328]
[1736282471962,3.2078,3391.7,3391.3,1.328]
[1736282472252,0.29508,3390.7,3390.5,5.89116567]
[1736282472457,0.29508,3390.7,3390.5,4.56316567]
[1736282472652,3.2078,3391.0,3390.5,4.56316567]
[1736282472653,7.16209,3391.0,3390.5,4.56316567]
[1736282472861,0.787,3390.9,3390.5,4.56316567]
[1736282473163,0.787,3390.9,3390.4,0.2951]
[1736282473457,0.29509,3390.7,3390.4,0.2951]
[1736282473651,0.29508,3390.8,3390.2,0.29513]
[1736282473859,1.08207,3390.9,3390.6,0.29509]
[1736282474157,0.787,3390.9,3390.1,6.43472108]
[1736282474463,0.787,3390.9,3390.7,0.29508]
[1736282474653,1.08207,3390.9,3390.6,0.29508]
[1736282474952,0.787,3390.9,3390.7,0.29508]
[1736282475158,0.787,3390.9,3390.8,0.29507]
[1736282475354,0.787,3390.9,3390.2,0.73782]
[1736282475555,1.08207,3390.9,3390.7,0.29508]
[1736282475757,0.787,3390.9,3390.1,6.43472108]
[1736282475955,0.787,3390.9,3390.7,0.29508]
[1736282476354,1.08207,3390.9,3390.6,0.29509]
[1736282476657,2.30414599,3391.8,3390.6,3.22692108]
[1736282476865,2.30414599,3391.8,3391.7,3.52191108]
[1736282477159,2.30414599,3391.8,3391.7,4.84991108]
[1736282477359,2.30414599,3391.8,3391.7,1.328]
[1736282477553,2.30414599,3391.8,3391.7,1.62299]
[1736282477750,2.30414599,3391.8,3391.7,4.84991108]
[1736282478156,3.8516,3392.4,3391.7,4.55492108]
[1736282478364,3.8516,3392.4,3392.3,0.29494]
[1736282478557,0.6438,3392.4,3392.3,0.29494]
[1736282478754,3.2078,3392.8,3391.8,3.2078]
[1736282478954,2.30414599,3393.1,3392.7,3.22692108]
[1736282479159,2.30414599,3393.1,3393.0,0.29488]
[1736282479660,3.2078,3393.3,3393.1,0.29487]
[1736282480363,3.2078,3393.3,3393.2,0.29486]
[1736282480663,3.2078,3393.3,3393.2,3.52178108]
[1736282480865,2.30414599,3394.3,3393.2,3.22692108]
[1736282481160,2.30414599,3394.3,3394.2,0.29478]
[1736282481362,2.30414599,3394.3,3394.0,1.328]
[1736282481559,0.29485,3393.5,3392.8,0.2949]
[1736282481860,0.29484,3393.6,3392.9,1.328]
[1736282482162,0.29483,3393.6,3392.9,1.328]
[1736282482361,0.29484,3393.5,3393.2,0.29486]
[1736282482765,3.2078,3393.7,3393.2,0.29488]
[1736282483056,3.50264,3393.7,3392.9,1.328]
[1736282483256,3.2078,3393.7,3392.9,1.328]
[1736282483564,3.2078,3393.7,3393.3,0.29487]
[1736282483565,3.50265,3393.7,3393.3,0.29487]
[1736282483861,3.2078,3393.7,3392.9,1.328]
[1736282484051,6.42444,3393.7,3392.6,3.2078]
[1736282484258,0.29497,3392.3,3392.1,1.328]
[1736282484556,3.2078,3392.6,3392.1,1.328]
[1736282484756,3.2078,3392.6,3392.4,0.29496]
[1736282485063,3.2078,3392.6,3392.5,0.29495]
[1736282485260,0.29492,3393.0,3392.1,1.328]
[1736282485261,3.2078,3393.0,3392.1,1.328]
[1736282485559,3.2078,3393.0,3392.0,1.328]
[1736282485560,0.295,3392.1,3392.0,1.328]
[1736282486061,3.2078,3392.2,3391.8,1.328]
[1736282486562,1.43421,3392.9,3391.8,1.328]
[1736282486563,3.2078,3392.7,3391.8,1.328]
[1736282486757,3.2078,3392.3,3391.8,1.328]
[1736282486960,3.2078,3392.3,3392.2,0.29498]
[1736282487157,3.2078,3392.8,3391.8,1.328]
[1736282487363,0.29495,3392.6,3392.4,0.29496]
[1736282487665,0.29496,3392.5,3392.3,0.29497]
[1736282487867,3.2078,3392.4,3392.3,0.29497]
[1736282488162,3.2078,3392.4,3392.2,0.29498]
[1736282488362,3.2078,3392.4,3391.8,1.328]
[1736282488561,3.2078,3392.4,3392.3,0.29497]
[1736282490165,3.2078,3392.4,3391.4,0.6432]
[1736282490465,3.2078,3391.9,3391.8,0.29502]
[1736282490666,3.2078,3392.3,3391.5,1.328]
[1736282490862,3.2078,3392.3,3392.2,0.29498]
[1736282491067,3.2078,3392.3,3391.7,3.22692108]
[1736282491266,0.295,3392.0,3391.7,0.29502]
[1736282491568,3.2078,3392.3,3391.5,1.328]
[1736282491767,3.2078,3392.3,3392.2,0.29498]
[1736282491979,3.2078,3392.3,3391.5,1.328]
[1736282492171,0.295,3392.0,3391.7,0.29502]
[1736282492365,0.29499,3392.1,3391.8,1.327]
[1736282493066,3.2078,3392.3,3391.8,1.62201]
[1736282493268,0.295,3392.0,3391.8,1.327]
[1736282493565,3.2078,3392.3,3391.9,0.295]
[1736282493566,0.29499,3392.2,3391.9,0.295]
[1736282493767,3.2078,3392.3,3391.8,1.327]
[1736282493970,0.29499,3392.1,3391.9,0.295]
[1736282494172,0.29499,3392.1,3391.8,1.62201]
[1736282494369,3.50278,3392.3,3392.0,0.29499]
[1736282494577,3.2078,3392.3,3391.8,1.327]
[1736282494869,0.295,3392.1,3391.8,1.327]
[1736282495069,0.295,3392.1,3391.9,0.295]
[1736282495465,3.2078,3392.3,3391.0,0.73771]
[1736282495669,3.50281,3391.9,3391.7,0.29502]
[1736282495860,0.29502,3391.8,3391.1,3.44175667]
[1736282496066,3.50281,3391.9,3391.7,0.29502]
[1736282496374,3.2078,3391.9,3391.5,1.327]
[1736282496673,3.2078,3391.9,3391.8,0.29502]
[1736282498075,3.2078,3391.9,3391.7,0.29502]
[1736282498274,3.2078,3391.9,3391.5,1.327]
[1736282498477,3.2078,3391.9,3391.8,0.29502]
[1736282499572,3.2078,3392.4,3392.3,0.29497]
[1736282500174,5.51194599,3392.8,3391.9,3.2078]
[1736282500477,2.30414599,3392.8,3392.7,3.52186108]
[1736282500674,4.56892744,3393.2,3393.1,0.2949]
[1736282500675,2.30414599,3393.2,3393.1,0.2949]
[1736282501471,2.30414599,3393.2,3392.8,3.50247473]
[1736282501681,2.30414599,3393.2,3393.1,0.2949]
[1736282501877,3.2078,3393.3,3393.2,0.29489]
[1736282504178,3.2078,3393.3,3392.8,0.6655]
[1736282504381,3.2078,3393.3,3393.2,0.29489]
[1736282508484,3.2078,3393.3,3393.1,1.327]
[1736282508485,0.29489,3393.2,3393.1,1.327]
[1736282508686,0.29489,3393.2,3393.1,1.6219]
[1736282508890,3.2078,3393.3,3393.1,1.327]
[1736282509080,3.8711,3393.7,3393.1,1.327]
[1736282509588,3.2078,3393.7,3393.6,0.29486]
[1736282512085,0.29488,3393.5,3393.3,0.29488]
[1736282512281,3.2078,3393.7,3393.1,1.327]
[1736282512481,0.29488,3393.5,3393.1,1.327]
[1736282512677,0.29488,3393.5,3393.4,0.29488]
[1736282512884,0.29486,3393.6,3393.5,0.29486]
[1736282513085,3.2078,3393.7,3393.1,1.327]
[1736282513388,3.2078,3393.7,3393.6,0.29486]
[1736282513792,2.30414599,3393.9,3393.8,0.29484]
[1736282514288,4.22212,3394.1,3393.5,0.73716]
[1736282514591,4.22212,3394.1,3394.0,0.29482]
[1736282514790,4.22212,3394.1,3394.0,1.62182]
[1736282515586,0.29486,3393.7,3393.6,0.29484]
[1736282515778,3.2078,3393.7,3393.6,0.29484]
[1736282517292,3.2078,3393.7,3393.0,1.327]
[1736282517494,0.29488,3393.4,3392.9,1.327]
[1736282517789,3.2078,3393.0,3392.9,1.62191]
[1736282517986,0.29491,3393.1,3393.0,0.29491]
[1736282518191,3.2078,3393.4,3392.9,1.327]
[1736282518390,3.94499,3393.5,3392.9,1.327]
[1736282518595,0.29491,3393.1,3393.0,0.29491]
[1736282518790,3.50271,3393.1,3392.9,1.327]
[1736282519089,0.29495,3392.6,3392.5,0.29495]
[1736282519596,3.2078,3392.7,3392.0,3.2183572]
[1736282519793,2.16579,3393.0,3392.1,1.327]
[1736282519794,3.2078,3392.3,3392.1,1.327]
[1736282520095,0.73746,3392.2,3391.2,1.327]
[1736282520388,0.73746,3392.2,3391.1,6.18522567]
[1736282520389,3.2078,3391.6,3391.1,6.18522567]
[1736282520594,3.2078,3391.6,3391.1,5.89016567]
[1736282520997,3.2078,3391.7,3391.6,0.29502]
[1736282522105,3.2078,3391.7,3391.6,1.62102]
[1736282522602,3.2078,3391.7,3391.6,1.326]
[1736282522603,3.50282,3391.7,3391.6,1.326]
[1736282522804,0.29506,3391.3,3391.0,1.326]
[1736282523104,0.29504,3391.5,3391.3,0.29505]
[1736282523293,3.2078,3391.7,3391.5,0.29503]
[1736282523494,3.2078,3391.7,3391.0,1.326]
[1736282523700,0.29503,3391.6,3391.4,0.29504]
[1736282523901,2.30414599,3391.5,3391.4,0.29504]
[1736282525109,2.30414599,3391.8,3391.1,0.73768]
[1736282525409,2.30414599,3391.8,3391.7,0.29502]
[1736282525600,2.30414599,3391.8,3391.2,2.83963443]
[1736282525813,2.30414599,3391.8,3391.0,4.5338]
[1736282525814,3.2078,3391.7,3391.0,1.326]
[1736282525995,3.2078,3391.3,3391.0,1.326]
[1736282526199,0.29507,3391.1,3391.0,1.326]
[1736282526606,0.29506,3391.2,3391.0,1.62108]
[1736282526906,0.29506,3391.2,3391.0,0.29508]
[1736282527109,3.2078,3391.3,3390.8,2.83963443]
[1736282527301,3.2078,3391.3,3390.9,0.29508]
[1736282527604,3.2078,3391.3,3390.8,2.83963443]
[1736282527605,0.29507,3391.2,3391.0,0.29508]
[1736282527808,3.50286,3391.3,3391.1,0.29507]
[1736282528008,0.29506,3391.2,3391.0,0.29507]
[1736282528207,0.29507,3391.2,3391.0,0.29508]
[1736282528403,0.29507,3391.2,3390.8,2.83963443]
[1736282528404,0.29507,3391.2,3390.9,0.29509]
[1736282529010,3.2078,3391.3,3390.8,2.83963443]
[1736282529210,3.2078,3391.3,3390.1,3.2078]
[1736282529406,0.2951,3390.8,3390.5,0.29512]
[1736282530011,0.29511,3390.7,3390.5,0.29512]
[1736282530211,0.2951,3390.8,3390.5,0.29512]
[1736282530605,3.2078,3390.9,3390.2,1.327]
[1736282530906,3.2078,3390.9,3390.6,0.29511]
[1736282531212,0.2951,3390.8,3390.6,0.29511]
[1736282531508,3.2078,3390.9,3390.2,1.327]
[1736282531708,3.2078,3390.3,3389.2,7.4028001]
[1736282531909,3.50302,3389.4,3389.2,4.56316567]
[1736282532120,0.29523,3389.3,3389.2,4.56316567]
[1736282532707,0.29523,3389.3,3388.4,4.85463443]
[1736282532708,0.29527,3388.8,3388.3,0.23289025]
[1736282533007,3.2078,3388.8,3388.1,2.83963443]
[1736282533208,3.2078,3388.8,3388.7,0.29528]
[1736282533909,3.2078,3388.8,3388.5,0.29529]
[1736282534111,3.2078,3388.8,3388.6,0.29529]
[1736282534308,0.29529,3388.7,3388.3,0.29531]
[1736282534612,3.2078,3388.8,3387.8,0.7429]
[1736282534814,3.2078,3388.3,3387.9,1.327]
[1736282535013,3.2078,3388.3,3388.1,0.29532]
[1736282535212,3.2078,3388.3,3387.9,1.327]
[1736282535515,3.50311,3388.3,3388.0,0.29533]
[1736282535813,0.29532,3388.1,3387.8,0.29534]
[1736282536017,3.2078,3388.3,3387.7,1.327]
[1736282536521,0.29532,3388.2,3387.8,0.29534]
[1736282536709,3.2078,3388.3,3387.6,0.29536]
[1736282537015,3.2078,3388.3,3387.5,3.2078]
[1736282537312,3.2078,3388.3,3387.1,0.2954]
[1736282537313,3.2078,3387.8,3387.1,0.2954]
[1736282537508,3.2078,3387.8,3386.8,1.56692171]
[1736282537714,0.29538,3387.5,3387.2,0.2954]
[1736282538011,6.42444,3387.4,3386.3,0.7011]
[1736282538211,3.2078,3386.5,3385.8,8.854]
[1736282538514,3.50327,3386.5,3385.9,1.327]
[1736282538710,3.2078,3386.5,3385.8,9.09254856]
[1736282539013,0.29545,3386.7,3386.2,0.29549]
[1736282539208,6.05627443,3387.2,3385.9,1.327]
[1736282539209,0.29547,3386.4,3385.9,1.327]
[1736282539410,3.2078,3386.6,3385.9,1.327]
[1736282539610,3.21664,3387.0,3385.7,0.29553]
[1736282539611,0.2955,3386.1,3385.7,0.29553]
[1736282539808,3.2078,3385.8,3385.4,1.327]
[1736282540008,3.2078,3385.8,3384.9,3.2078]
[1736282540204,6.42444,3385.8,3384.9,3.2078]
[1736282540418,3.2078,3385.0,3384.5,0.29564]
[1736282540713,3.2078,3385.0,3384.5,0.29563]
[1736282540911,3.2078,3385.0,3384.4,1.327]
[1736282541108,6.42444,3385.4,3384.7,2.83963443]
[1736282541411,6.42444,3385.4,3384.3,0.23794462]
[1736282541412,3.2078,3384.8,3384.3,0.23794462]
[1736282541712,3.2078,3384.8,3384.0,1.328]
[1736282542008,3.2078,3384.8,3384.6,0.29563]
[1736282542208,3.2078,3384.8,3384.0,4.16763443]
[1736282542519,3.2078,3384.4,3384.1,0.29567]
[1736282542716,3.2078,3384.8,3384.4,0.29564]
[1736282542921,3.50342,3384.8,3384.0,1.328]
[1736282543213,3.2078,3384.8,3384.3,0.29565]
[1736282543413,3.2078,3384.8,3384.0,1.328]
[1736282543713,3.2078,3384.4,3384.1,1.328]
[1736282543914,3.21664,3385.0,3384.9,0.2956]
[1736282544112,3.2078,3385.2,3385.1,0.29559]
[1736282544307,3.2078,3385.2,3384.8,1.328]
[1736282544514,0.29559,3385.1,3384.8,1.328]
[1736282544713,3.2078,3385.2,3384.8,1.328]
[1736282545017,3.21664,3385.6,3385.1,0.29559]
[1736282545018,6.42444,3385.6,3385.1,0.29559]
[1736282545315,3.2078,3386.0,3385.8,0.29552]
[1736282545712,3.2078,3386.0,3385.4,0.29556]
[1736282545908,3.50331,3386.0,3385.0,3.2078]
[1736282546106,3.50331,3386.0,3385.6,0.29554]
[1736282546107,3.2078,3386.0,3385.6,0.29554]
[1736282546305,3.50331,3386.0,3385.0,3.2078]
[1736282546523,0.29552,3385.9,3385.4,0.29556]
[1736282546713,3.50331,3386.0,3385.5,0.29555]
[1736282546915,3.2078,3386.0,3385.6,0.29554]
[1736282547110,3.92,3386.5,3385.7,4.16763443]
[1736282547316,3.2078,3386.5,3386.4,0.29547]
[1736282547513,3.2078,3386.5,3386.2,0.29548]
[1736282547813,3.2078,3386.5,3386.1,2.83963443]
[1736282548015,3.2078,3386.9,3386.5,0.29546]
[1736282548209,3.2078,3386.9,3386.1,2.83963443]
[1736282548415,3.2078,3386.9,3386.7,0.29544]
[1736282548616,3.2078,3386.9,3386.2,3.2078]
[1736282548817,3.2078,3386.9,3386.5,2.83963443]
[1736282549009,3.2078,3386.9,3386.8,0.29544]
[1736282549417,0.6842,3387.6,3386.6,3.94643]
[1736282549609,0.6842,3387.6,3387.5,0.29538]
[1736282549914,6.42444,3387.7,3386.7,2.83963443]
[1736282550122,3.5032,3387.3,3386.7,4.16863443]
[1736282550418,3.2078,3387.3,3386.7,4.16863443]
[1736282550809,3.2078,3387.3,3387.1,2.83963443]
[1736282551214,6.42444,3387.7,3387.2,0.2954]
[1736282551415,6.42444,3387.7,3387.1,2.83963443]
[1736282551612,3.2078,3387.7,3387.6,0.29537]
[1736282552718,0.29538,3387.5,3387.2,0.2954]
[1736282552921,0.29538,3387.6,3387.0,3.2078]
[1736282553129,3.2078,3387.7,3387.6,0.29537]
[1736282553815,3.2078,3388.2,3387.5,4.16763443]
[1736282554015,3.2078,3388.8,3387.9,2.83963443]
[1736282554223,1.3308,3389.2,3387.9,2.83963443]
[1736282554224,3.2078,3388.4,3387.9,2.83963443]
[1736282554421,3.2078,3388.4,3387.8,0.29535]
[1736282554621,3.2078,3388.4,3387.5,4.86983443]
[1736282555016,0.29536,3387.8,3387.5,1.62337]
[1736282555521,6.42444,3387.9,3386.9,3.2078]
[1736282555726,3.50318,3387.5,3387.1,0.29541]
[1736282556032,3.2078,3387.5,3386.7,1.328]
[1736282556223,3.2078,3387.1,3386.9,0.29543]
[1736282556424,3.2078,3387.5,3386.7,7.37543443]
[1736282556624,3.50318,3387.5,3387.2,0.2954]
[1736282556831,3.2078,3387.5,3386.7,7.37543443]
[1736282557026,3.2078,3387.5,3387.4,0.29539]
[1736282557221,3.2078,3387.5,3386.7,7.37543443]
[1736282557531,0.29539,3387.4,3387.1,0.29541]
[1736282557826,0.2954,3387.3,3387.0,0.29542]
[1736282558425,3.2078,3387.5,3386.7,7.37543443]
[1736282558623,3.50322,3387.1,3386.8,0.29544]
[1736282558825,0.29542,3387.0,3386.5,1.62346]
[1736282559030,3.2078,3386.7,3386.3,0.29548]
[1736282559237,3.2078,3386.7,3386.0,1.328]
[1736282559428,3.2078,3386.7,3386.2,0.29549]
[1736282559628,0.29547,3386.5,3386.2,0.29549]
[1736282559932,0.29547,3386.5,3386.1,0.2955]
[1736282560129,0.29548,3386.4,3386.1,0.2955]
[1736282560332,3.2078,3386.7,3386.0,1.328]
[1736282560524,0.29548,3386.4,3386.1,0.29549]
[1736282560722,3.2078,3386.7,3386.3,2.83963443]
[1736282560922,3.2078,3387.1,3386.8,0.29544]
[1736282561133,3.2078,3387.1,3387.0,0.29542]
[1736282561328,3.2078,3387.5,3387.4,0.29539]
[1736282562529,3.50318,3387.5,3387.3,0.29539]
[1736282562733,0.29539,3387.4,3387.2,0.2954]
[1736282562934,3.2078,3387.5,3386.8,1.328]
[1736282563129,3.2078,3387.5,3386.7,6.04743443]
[1736282563332,3.2078,3387.5,3386.8,0.29544]
[1736282563333,0.29543,3387.0,3386.8,0.29544]
[1736282563527,0.29542,3387.0,3386.8,0.29543]
[1736282563832,0.29542,3387.0,3386.7,0.29544]
[1736282564027,3.2078,3387.1,3386.7,0.29544]
[1736282564223,0.29543,3386.9,3386.6,1.62345]
[1736282564431,0.29543,3386.9,3386.6,1.328]
[1736282564628,3.2078,3387.1,3386.7,0.29544]
[1736282564629,0.29543,3387.0,3386.7,0.29544]
[1736282565323,3.2078,3387.1,3386.7,0.29545]
[1736282565531,3.2078,3387.1,3386.6,1.328]
[1736282565729,3.2078,3386.7,3386.6,1.328]
[1736282566030,3.2078,3386.7,3385.9,6.04743443]
[1736282566336,3.2078,3386.7,3386.2,1.328]
[1736282566533,0.29548,3386.3,3386.1,1.6235]
[1736282566834,0.29549,3386.2,3386.1,1.328]
[1736282567431,0.29549,3386.2,3385.6,8.864]
[1736282567432,3.2078,3386.2,3385.6,8.864]
[1736282567633,0.29553,3385.7,3385.6,10.192]
[1736282567931,0.29553,3385.7,3385.6,1.328]
[1736282568135,3.2078,3385.8,3385.6,1.328]
[1736282568333,3.50333,3385.8,3385.6,1.62354]
[1736282568535,3.5033,3386.1,3385.7,0.29553]
[1736282568734,3.5033,3386.1,3385.6,1.328]
[1736282568735,3.2078,3386.1,3385.6,1.328]
[1736282568928,3.2078,3386.1,3385.8,0.29552]
[1736282568929,0.29551,3386.0,3385.8,0.29552]
[1736282569134,0.29552,3385.9,3385.7,0.29553]
[1736282569738,3.2078,3386.1,3385.6,1.328]
[1736282569933,0.29553,3385.7,3385.6,1.328]
[1736282570638,3.94656,3386.1,3385.6,1.328]
[1736282570639,3.2078,3386.1,3385.6,1.328]
[1736282570935,0.29553,3385.7,3385.6,1.328]
[1736282571129,3.2078,3386.1,3385.6,1.328]
[1736282571331,0.29551,3386.0,3385.8,0.29552]
[1736282571631,0.29553,3385.9,3385.6,1.62354]
[1736282571831,3.2078,3385.7,3384.6,2.83963443]
[1736282572031,0.29559,3385.1,3384.9,0.2956]
[1736282572236,3.2078,3385.3,3384.8,1.328]
[1736282572237,0.2956,3384.9,3384.8,1.328]
[1736282572424,3.2078,3385.3,3384.8,1.328]
[1736282572733,0.2956,3384.9,3384.8,1.328]
[1736282572928,3.2078,3385.3,3384.9,0.2956]
[1736282573132,3.2078,3385.3,3384.8,1.328]
[1736282573332,3.50333,3385.8,3385.6,0.29554]
[1736282573931,3.2078,3385.8,3385.0,2.83963443]
[1736282574132,3.2078,3385.8,3385.4,2.83963443]
[1736282574435,0.29554,3385.7,3385.5,0.29555]
[1736282574628,7.16326,3385.8,3384.8,1.328]
[1736282574823,3.2078,3385.2,3384.8,1.328]
[1736282575735,0.2956,3384.9,3384.8,1.62361]
[1736282575936,0.2956,3384.9,3384.8,1.328]
[1736282576138,0.2956,3384.9,3384.8,1.62361]
[1736282576445,0.2956,3384.9,3384.8,1.328]
[1736282576938,0.2956,3385.0,3384.8,1.62361]
[1736282577131,0.29559,3385.1,3384.9,0.2956]
[1736282577328,0.2956,3385.0,3384.8,1.62361]
[1736282577626,0.29559,3385.1,3384.9,0.2956]
[1736282577825,3.50338,3385.2,3385.0,0.29559]
[1736282578027,0.29559,3385.1,3384.9,0.2956]
[1736282578834,0.2956,3385.0,3384.9,0.2956]
[1736282579034,0.2956,3385.0,3384.8,0.29561]
[1736282579534,0.29559,3385.1,3385.0,0.29559]
[1736282579731,3.2078,3385.2,3384.7,1.328]
[1736282579938,0.29561,3384.8,3384.7,1.328]
[1736282580133,3.93214,3385.1,3384.2,2.83963443]
[1736282580327,3.2078,3384.8,3384.3,1.328]
[1736282580632,0.29562,3384.7,3384.5,0.29563]
[1736282580833,0.29562,3384.7,3384.6,0.29563]
[1736282581029,3.93214,3385.1,3384.6,2.83963443]
[1736282581236,3.93214,3385.1,3385.0,0.2956]
[1736282581632,4.22773,3385.1,3385.0,0.2956]
[1736282582627,3.21664,3385.1,3385.0,0.2956]
[1736282582939,3.21664,3385.1,3385.0,4.46223443]
[1736282583133,2.25834483,3385.8,3385.0,1.6226]
[1736282583437,0.29553,3385.8,3385.7,0.29553]
[1736282583637,3.2078,3386.0,3385.8,0.29553]
[1736282583839,0.29554,3385.7,3385.6,0.29554]
[1736282584037,3.2078,3386.0,3385.8,0.29553]
[1736282584433,3.50331,3386.0,3385.8,0.29553]
[1736282584733,3.2078,3386.0,3385.8,0.29553]
[1736282584939,3.2078,3386.0,3385.4,4.16663443]
[1736282585239,3.2078,3386.0,3385.5,0.29555]
[1736282585536,3.2078,3386.0,3385.4,1.327]
[1736282585745,0.29554,3385.7,3385.6,0.29554]
[1736282586039,3.2078,3386.0,3385.6,0.29554]
[1736282586040,0.29553,3385.8,3385.6,0.29554]
[1736282586239,0.29554,3385.7,3385.5,0.29555]
[1736282586539,0.29554,3385.7,3385.6,0.29554]
[1736282586733,3.2078,3386.0,3385.1,0.7247]
[1736282586934,0.29556,3385.4,3385.2,1.62257]
[1736282587129,3.2078,3385.6,3385.1,1.327]
[1736282587344,0.29558,3385.2,3385.1,1.327]
[1736282587732,0.29564,3384.5,3384.3,1.327]
[1736282587928,3.52983443,3385.6,3384.0,3.2078]
[1736282587929,3.2078,3384.8,3384.0,3.2078]
[1736282588134,0.29568,3384.0,3383.9,4.53079101]
[1736282588736,3.21664,3384.1,3383.5,0.29573]
[1736282588945,3.2078,3383.7,3383.0,5.85779101]
[1736282589138,0.29575,3383.1,3383.0,4.82654101]
[1736282589340,0.29575,3383.1,3383.0,4.53079101]
[1736282591346,0.29575,3383.1,3381.6,0.29587]
[1736282591347,0.29586,3381.9,3381.6,0.29587]
[1736282591535,3.2078,3382.0,3381.2,1.21669101]
[1736282591734,0.2959,3381.4,3381.2,1.21669101]
[1736282591930,0.29591,3381.4,3381.2,1.21669101]
[1736282592142,3.2078,3381.5,3381.2,1.21669101]
[1736282592332,3.50369,3381.5,3381.2,1.21669101]
[1736282592541,3.2078,3381.5,3381.2,1.21669101]
[1736282592839,3.50369,3381.5,3381.0,2.83963443]
[1736282593040,3.50369,3381.5,3381.1,0.29592]
[1736282593230,3.2078,3381.5,3381.1,0.29592]
[1736282593433,3.57915443,3382.5,3381.0,6.04743443]
[1736282593434,3.2078,3381.9,3381.0,6.04743443]
[1736282593630,3.2078,3381.9,3381.8,0.29586]
[1736282593843,3.2078,3382.5,3381.8,2.83963443]
[1736282594044,3.2078,3382.5,3381.5,1.328]
[1736282594045,2.30337772,3382.6,3382.2,2.83963443]
[1736282594344,4.51668966,3382.9,3382.3,1.328]
[1736282594345,2.30337772,3382.9,3382.3,1.328]
[1736282594738,2.30337772,3382.9,3382.4,1.328]
[1736282595043,2.30337772,3382.9,3382.7,0.29578]
[1736282595345,0.29576,3383.1,3382.6,0.29579]
[1736282595545,0.29576,3383.0,3382.5,0.2958]
[1736282595837,3.50359,3382.7,3382.3,0.29582]
[1736282596040,6.42444,3382.7,3381.4,1.328]
[1736282596245,3.2078,3382.1,3382.0,0.29585]
[1736282596739,3.2078,3382.1,3381.9,0.29585]
[1736282597342,3.2078,3382.1,3381.6,2.83963443]
[1736282597542,3.2078,3382.1,3381.9,0.29585]
[1736282597845,3.2078,3382.1,3381.8,0.29586]
[1736282598043,0.29587,3381.8,3381.4,1.6239]
[1736282598341,3.2078,3382.1,3381.3,1.328]
[1736282598644,0.29586,3381.9,3381.5,0.29588]
[1736282598846,3.2078,3382.1,3381.6,2.83963443]
[1736282599142,0.29585,3382.0,3381.4,0.29589]
[1736282599345,0.29586,3381.9,3381.4,0.29589]
[1736282599531,3.2078,3382.1,3381.3,1.328]
[1736282599736,3.2078,3382.1,3381.6,0.29588]
[1736282599737,0.29585,3382.0,3381.6,0.29588]
[1736282600649,0.29585,3381.9,3381.5,0.29588]
[1736282601037,3.2078,3382.1,3381.2,3.50943443]
[1736282601246,0.29586,3381.9,3381.5,0.29588]
[1736282601444,0.29586,3381.9,3381.6,0.29588]
[1736282601638,3.2078,3382.1,3381.6,0.29588]
[1736282601946,0.29585,3382.0,3381.6,0.29588]
[1736282602145,0.29585,3382.0,3381.3,1.328]
[1736282602344,0.29585,3382.0,3381.7,0.29587]
[1736282602543,3.2078,3382.1,3382.0,0.29584]
[1736282602749,3.21664,3382.9,3382.4,0.2958]
[1736282602944,3.2078,3382.6,3382.0,2.83963443]
[1736282603142,3.2078,3382.6,3381.6,3.56543443]
[1736282603346,0.29583,3382.1,3381.7,1.328]
[1736282603543,3.50362,3382.2,3381.9,0.29585]
[1736282603842,3.2078,3382.2,3382.0,0.29584]
[1736282604048,3.2078,3382.2,3382.1,0.29583]